{"text_format":"1","workbook":"xlsx","n_sheets":2,"sheets":["ISA Late Timesheet","Lists"],"not_rendered":{"charts":0,"images":0,"macros":1,"external_links":0,"defined_names":8,"comments":1,"pivot_tables":0},"unopened":[],"bounds":{"document_bytes":16777216,"sheet_cells":100000,"rows_first":2000,"rows_last":500,"rows_between":2000,"halvings":0,"cell_chars":16384,"cell_head_chars":4096},"cells_cut":0,"cells_raw":0,"read":"whole","date_system":"1900"}

{"sheet":"ISA Late Timesheet","index":0,"n_rows":56,"n_cols":12,"rows_kept":56,"cut":false,"hidden":false,"merged":[[39,6,39,7],[36,6,36,7],[4,0,4,1],[37,6,37,7],[38,6,38,7],[6,0,6,1],[4,2,4,5],[6,2,6,5],[5,0,5,1],[5,2,5,5],[10,6,10,7],[10,3,10,4],[30,6,30,7],[31,6,31,7],[26,6,26,7],[27,6,27,7],[28,6,28,7],[29,6,29,7],[34,6,34,7],[35,6,35,7],[32,6,32,7],[33,6,33,7],[23,6,23,7],[24,6,24,7],[0,0,0,11],[1,0,1,11],[2,0,2,11],[8,3,8,4],[6,7,6,9],[4,10,4,11],[5,10,5,11],[4,7,4,9],[5,7,5,9],[7,0,7,11],[8,6,8,7],[6,10,6,11],[25,6,25,7],[19,6,19,7],[20,6,20,7],[21,6,21,7],[22,6,22,7],[15,6,15,7],[16,6,16,7],[17,6,17,7],[18,6,18,7],[27,3,27,4],[28,3,28,4],[29,3,29,4],[30,3,30,4],[31,3,31,4],[20,3,20,4],[21,3,21,4],[22,3,22,4],[23,3,23,4],[24,3,24,4],[25,3,25,4],[55,0,55,11],[48,0,48,2],[45,0,45,2],[45,6,45,9],[46,0,46,2],[46,6,46,9],[47,0,47,2],[47,6,47,9],[32,3,32,4],[33,3,33,4],[34,3,34,4],[35,3,35,4],[36,3,36,4],[37,3,37,4],[50,0,50,4],[50,6,50,10],[54,0,54,11],[43,2,43,7],[43,0,43,1],[52,0,52,11],[43,9,43,10],[46,3,46,4],[45,3,45,4],[40,3,40,4],[44,1,44,8],[9,3,9,4],[9,6,9,7],[19,3,19,4],[15,3,15,4],[16,3,16,4],[17,3,17,4],[18,3,18,4],[11,3,11,4],[12,3,12,4],[13,3,13,4],[14,3,14,4],[11,6,11,7],[12,6,12,7],[13,6,13,7],[14,6,14,7],[41,3,41,4],[42,3,42,4],[40,6,40,7],[41,6,41,7],[42,6,42,7],[38,3,38,4],[39,3,39,4],[26,3,26,4]]}
["CAL POLY SAN LUIS OBISPO"]
["2013 Instructional Student Assistant (ISA) Late Timesheet"]
["THIS FORM MUST BE FILLED OUT IN EXCEL"]
[]
["Department Name:",null,null,null,null,null,null,"Employee Record #:",null,null,0]
["Employee Name:",null,null,null,null,null,null,"Pay Period:",null,null,"January"]
["Employee ID:",null,null,null,null,null,null,"Additional hours:",null,null,"No"]
[]
[null,"IN","OUT","IN",null,"OUT","IN",null,"OUT","IN","OUT","HOURS"]
[30,null,null,null,null,null,null,null,null,null,null,{"$f":"IF(AND(LEN(C10) > 0,  LEN(B10) > 0),(C10-B10)*24,0) + IF(AND(LEN(F10) > 0, LEN(D10) > 0),(F10-D10)*24,0)+IF(AND(LEN(I10) > 0, LEN(G10)> 0),(I10-G10)*24,0)+IF(AND(LEN(K10) > 0, LEN(J10)> 0),(K10-J10)*24,0)","v":0}]
[31,null,null,null,null,null,null,null,null,null,null,{"$f":"IF(AND(LEN(C11) > 0,  LEN(B11) > 0),(C11-B11)*24,0) + IF(AND(LEN(F11) > 0, LEN(D11) > 0),(F11-D11)*24,0)+IF(AND(LEN(I11) > 0, LEN(G11)> 0),(I11-G11)*24,0)+IF(AND(LEN(K11) > 0, LEN(J11)> 0),(K11-J11)*24,0)","v":0}]
[1,null,null,null,null,null,null,null,null,null,null,{"$f":"IF(AND(LEN(C12) > 0,  LEN(B12) > 0),(C12-B12)*24,0) + IF(AND(LEN(F12) > 0, LEN(D12) > 0),(F12-D12)*24,0)+IF(AND(LEN(I12) > 0, LEN(G12)> 0),(I12-G12)*24,0)+IF(AND(LEN(K12) > 0, LEN(J12)> 0),(K12-J12)*24,0)","v":0}]
[2,null,null,null,null,null,null,null,null,null,null,0]
[3,null,null,null,null,null,null,null,null,null,null,0]
[4,null,null,null,null,null,null,null,null,null,null,0]
[5,null,null,null,null,null,null,null,null,null,null,0]
[6,null,null,null,null,null,null,null,null,null,null,0]
[7,null,null,null,null,null,null,null,null,null,null,0]
[8,null,null,null,null,null,null,null,null,null,null,0]
[9,null,null,null,null,null,null,null,null,null,null,0]
[10,null,null,null,null,null,null,null,null,null,null,0]
[11,null,null,null,null,null,null,null,null,null,null,0]
[12,null,null,null,null,null,null,null,null,null,null,0]
[13,null,null,null,null,null,null,null,null,null,null,0]
[14,null,null,null,null,null,null,null,null,null,null,0]
[15,null,null,null,null,null,null,null,null,null,null,0]
[16,null,null,null,null,null,null,null,null,null,null,0]
[17,null,null,null,null,null,null,null,null,null,null,0]
[18,null,null,null,null,null,null,null,null,null,null,0]
[19,null,null,null,null,null,null,null,null,null,null,0]
[20,null,null,null,null,null,null,null,null,null,null,0]
[21,null,null,null,null,null,null,null,null,null,null,0]
[22,null,null,null,null,null,null,null,null,null,null,0]
[23,null,null,null,null,null,null,null,null,null,null,0]
[24,null,null,null,null,null,null,null,null,null,null,0]
[25,null,null,null,null,null,null,null,null,null,null,0]
[26,null,null,null,null,null,null,null,null,null,null,0]
[27,null,null,null,null,null,null,null,null,null,null,0]
[28,null,null,null,null,null,null,null,null,null,null,0]
[29,null,null,null,null,null,null,null,null,null,null,0]
[30,null,null,null,null,null,null,null,null,null,null,0]
[31,null,null,null,null,null,null,null,null,null,null,0]
[1,null,null,null,null,null,null,null,null,null,null,0]
["Pay Period:",null,{"$f":"VLOOKUP(K6,MonthsAndPayPeriodsList,2,FALSE)","v":"January 1 - January 30"},null,null,null,null,null,null,"Total Hours:",null,{"$f":"SUM(L10:L43)","v":0}]
[null,"ONLY SUBMIT DATES THAT FALL IN THIS PAY PERIOD"]
["Authorized Signature:",null,null,"Date:",null,null,"Employee's Signature:",null,null,null,"Date:"]
[]
[]
["Supervisor: Print Name"]
[]
["I certify that the above hours were authorized by me and\n were worked by this student in a satisfactory manner.",null,null,null,null,null,"I certify that I have worked the hours recorded on this timesheet."]
[]
["PLEASE SUBMIT THIS FORM TO THE PAYROLL OFFICE FOR PAYMENT"]
[]
["If you are unsure whether you are an Instructional Student Assistant please contact your department."]
["If you have questions regarding this form please contact Payroll Services at 756-2605"]

{"sheet":"Lists","index":1,"n_rows":78,"n_cols":5,"rows_kept":78,"cut":false,"hidden":false,"merged":[]}
["Yes","January","January 1 - January 30","Aerospace Engineering",112]
["No","February","January 31 - February 28","Agribusiness",3]
[null,"March","March 1 - March 31","Agricultural Education",1]
[null,"April","April 1 - April 30","Animal Science",4]
[null,"May","May 1 - May 30","Architectural Engineering",27]
[null,"June","May 31 - June 30","Architecture",26]
[null,"July","July 1 - July 30","Art & Design",76]
[null,"August","July 31 - August 29","Athletics-Academic Advising",201]
[null,"September","August 30 - September 30","Bio Resource & Ag Engineering",2]
[null,"October","October 1 - October 30","Biological Sciences",151]
[null,"November","October 31 - November 30","Biomedical Engineering ",119]
[null,"December","December 1 - December 31","Cal Poly Arts",81]
[null,null,null,"Cal Poly Theater",88]
[null,null,null,"CENG-Advising Center",125]
[null,null,null,"Chemistry & Biochemistry",152]
[null,null,null,"City & Regional Planning",28]
[null,null,null,"Civil & Environmental Eng",102]
[null,null,null,"CLA-Advancement",95]
[null,null,null,"College of Agriculture",25]
[null,null,null,"College of Arch & Env Design",50]
[null,null,null,"College of Bus-Computer Lab",56]
[null,null,null,"College of Business",75]
[null,null,null,"College of Engineering",125]
[null,null,null,"College of Liberal Arts",100]
[null,null,null,"College of Science & Math",175]
[null,null,null,"Computer Engineering Program",103]
[null,null,null,"Computer Science",115]
[null,null,null,"Construction Management",29]
[null,null,null,"Continuing Education CERF",210]
[null,null,null,"Dairy Products Tech Center",13]
[null,null,null,"Dairy Science",6]
[null,null,null,"Economics",53]
[null,null,null,"Electrical Engineering",103]
[null,null,null,"English",77]
[null,null,null,"Env Horticultural & Crop Sciences",5]
[null,null,null,"Env Horticultural & Crop Sciences",9]
[null,null,null,"Ethnic Studies",90]
[null,null,null,"Extended Educ./Continuing Educ.",210]
[null,null,null,"Farm Operations",12]
[null,null,null,"Finance",58]
[null,null,null,"Food Science & Nutrition",7]
[null,null,null,"General Engineering Program",125]
[null,null,null,"Global Strategy & Law",75]
[null,null,null,"Graduate Management Programs",57]
[null,null,null,"Graphic Communication",92]
[null,null,null,"History",80]
[null,null,null,"Humanities",93]
[null,null,null,"IME-Mfg and Welding",111]
[null,null,null,"Industrial & Mfg Engineering",111]
[null,null,null,"Industrial Technology",55]
[null,null,null,"Journalism",82]
[null,null,null,"Kinesiology",156]
[null,null,null,"Landscape Architecture",30]
[null,null,null,"Liberal Studies",157]
[null,null,null,"Management",54]
[null,null,null,"Marketing",59]
[null,null,null,"Materials Engineering",113]
[null,null,null,"Mathematics",154]
[null,null,null,"Mechanical Engineering",101]
[null,null,null,"MESA Engineering Program",116]
[null,null,null,"Modern Languages & Lit",78]
[null,null,null,"Music",83]
[null,null,null,"Mustang Daily",82]
[null,null,null,"Natural Resource Mgmt",8]
[null,null,null,"Philosophy",85]
[null,null,null,"Physical Education",156]
[null,null,null,"Physics",155]
[null,null,null,"Political Science",84]
[null,null,null,"Psychology & Human Development",91]
[null,null,null,"School of Education",176]
[null,null,null,"Social Science",86]
[null,null,null,"Soil Science",11]
[null,null,null,"Speech Communication",87]
[null,null,null,"Statistics",153]
[null,null,null,"Student Academic Services",404]
[null,null,null,"Theatre & Dance",89]
[null,null,null,"Veterinary Clinic",15]
[null,null,null,"Writing Skills Program",77]